[Event "Elitserien 2019/2020, round 1-3"]
[Site "Uppsala University, Gamla torget, Uppsala, Sweden"]
[Date "2019.10.18"]
[Round "1.28"]
[White "Antonsen, Mikkel"]
[Black "Norberg, Johan"]
[Result "1-0"]
[TimeControl "90 minutes for 40 moves + 30 minutes for the rest of the game + 30 seconds per move from move one."]
[WhiteTitle "IM"]
[BlackTitle "FM"]
[WhiteFideId "1401378"]
[BlackFideId "1707078"]
[WhiteElo "2388"]
[BlackElo "2315"]

1. c4 {[%clk 01:30:47]} {[%emt 00:00:12]} e5 {[%clk 01:30:31]} {[%emt
00:00:30]} 2. Nc3 {[%clk 01:31:11]} {[%emt 00:00:06]} Nc6 {[%clk 01:28:01]}
{[%emt 00:03:01]} 3. Nf3 {[%clk 01:31:07]} {[%emt 00:00:35]} f5 {[%clk
01:26:04]} {[%emt 00:02:27]} 4. d4 {[%clk 01:31:01]} {[%emt 00:00:35]} e4
{[%clk 01:24:37]} {[%emt 00:01:57]} 5. Ng5 {[%clk 01:31:21]} {[%emt 00:00:10]}
Nf6 {[%clk 01:22:22]} {[%emt 00:02:45]} 6. e3 {[%clk 01:29:44]} {[%emt
00:02:06]} h6 {[%clk 01:12:13]} {[%emt 00:10:39]} 7. Nh3 {[%clk 01:29:53]}
{[%emt 00:00:21]} g5 {[%clk 01:11:32]} {[%emt 00:01:11]} 8. f3 {[%clk
01:27:50]} {[%emt 00:02:32]} exf3 {[%clk 01:06:29]} {[%emt 00:05:34]} 9. gxf3
{[%clk 01:28:08]} {[%emt 00:00:12]} Bb4 {[%clk 01:04:53]} {[%emt 00:02:06]} 10.
Bd2 {[%clk 01:24:42]} {[%emt 00:03:56]} Qe7 {[%clk 00:59:55]} {[%emt 00:05:28]}
11. Qe2 {[%clk 01:16:02]} {[%emt 00:09:10]} f4 {[%clk 00:54:02]} {[%emt
00:06:23]} 12. O-O-O {[%clk 01:05:36]} {[%emt 00:10:56]} fxe3 {[%clk 00:49:39]}
{[%emt 00:04:53]} 13. Bxe3 {[%clk 01:03:31]} {[%emt 00:02:35]} Bxc3 {[%clk
00:44:15]} {[%emt 00:05:55]} 14. bxc3 {[%clk 01:03:55]} {[%emt 00:00:06]} d5
{[%clk 00:43:06]} {[%emt 00:01:38]} 15. Nf2 {[%clk 01:00:12]} {[%emt 00:04:12]}
Be6 {[%clk 00:23:25]} {[%emt 00:20:11]} 16. Re1 {[%clk 00:54:21]} {[%emt
00:06:22]} Kf7 {[%clk 00:17:49]} {[%emt 00:06:06]} 17. Qb2 {[%clk 00:51:18]}
{[%emt 00:03:33]} Na5 {[%clk 00:13:12]} {[%emt 00:05:08]} 18. h4 {[%clk
00:46:39]} {[%emt 00:05:08]} Nh5 {[%clk 00:05:05]} {[%emt 00:08:37]} 19. Bd2
{[%clk 00:45:47]} {[%emt 00:01:22]} Qf6 {[%clk 00:03:37]} {[%emt 00:01:58]} 20.
cxd5 {[%clk 00:41:12]} {[%emt 00:05:05]} Bxd5 {[%clk 00:03:38]} {[%emt
00:00:29]} 21. Qb5 {[%clk 00:41:37]} {[%emt 00:00:05]} Bxf3 {[%clk 00:03:02]}
{[%emt 00:01:07]} 22. Qxa5 {[%clk 00:37:03]} {[%emt 00:05:04]} b6 {[%clk
00:01:53]} {[%emt 00:01:38]} 23. Qa4 {[%clk 00:34:44]} {[%emt 00:02:49]} Bxh1
{[%clk 00:01:58]} {[%emt 00:00:25]} 24. Qd7+ {[%clk 00:34:43]} {[%emt
00:00:31]} Kf8 {[%clk 00:02:15]} {[%emt 00:00:13]} 25. Nxh1 {[%clk 00:35:09]}
{[%emt 00:00:05]} Qf7 {[%clk 00:01:54]} {[%emt 00:00:51]} 26. Qc6 {[%clk
00:33:01]} {[%emt 00:02:37]} Re8 {[%clk 00:01:50]} {[%emt 00:00:34]} 27. Rxe8+
{[%clk 00:33:03]} {[%emt 00:00:29]} Qxe8 {[%clk 00:02:18]} {[%emt 00:00:02]} 28.
Qxc7 {[%clk 00:33:25]} {[%emt 00:00:07]} gxh4 {[%clk 00:01:46]} {[%emt
00:01:01]} 29. Bc4 {[%clk 00:31:21]} {[%emt 00:02:34]} Qe7 {[%clk 00:01:41]}
{[%emt 00:00:35]} 30. Qc8+ {[%clk 00:31:12]} {[%emt 00:00:39]} Qe8 {[%clk
00:01:44]} {[%emt 00:00:27]} 31. Qg4 {[%clk 00:29:28]} {[%emt 00:02:14]} Nf6
{[%clk 00:00:40]} {[%emt 00:01:35]} 32. Qxh4 {[%clk 00:29:45]} {[%emt
00:00:12]} Ke7 {[%clk 00:00:46]} {[%emt 00:00:24]} 33. Ng3 {[%clk 00:29:41]}
{[%emt 00:00:34]} Qg6 {[%clk 00:00:55]} {[%emt 00:00:21]} 34. Qf4 {[%clk
00:29:10]} {[%emt 00:01:01]} Rc8 {[%clk 00:00:55]} {[%emt 00:00:29]} 35. Nf5+
{[%clk 00:28:54]} {[%emt 00:00:46]} 1-0

[Event "Elitserien 2019/2020, round 1-3"]
[Site "Uppsala University, Gamla torget, Uppsala, Sweden"]
[Date "2019.10.18"]
[Round "1.29"]
[White "Bergstrom, Peter"]
[Black "Kucuksari, Kaan"]
[Result "0-1"]
[TimeControl "90 minutes for 40 moves + 30 minutes for the rest of the game + 30 seconds per move from move one."]
[WhiteTitle "FM"]
[BlackTitle "FM"]
[WhiteFideId "1702467"]
[BlackFideId "6380166"]
[WhiteElo "2306"]
[BlackElo "2319"]

1. e4 {[%clk 01:30:52]} {[%emt 00:00:07]} c5 {[%clk 01:29:28]} {[%emt
00:01:33]} 2. Nf3 {[%clk 01:31:12]} {[%emt 00:00:11]} e6 {[%clk 01:29:51]}
{[%emt 00:00:06]} 3. d4 {[%clk 01:31:28]} {[%emt 00:00:14]} cxd4 {[%clk
01:30:18]} {[%emt 00:00:04]} 4. Nxd4 {[%clk 01:31:53]} {[%emt 00:00:05]} a6
{[%clk 01:30:41]} {[%emt 00:00:07]} 5. Bd3 {[%clk 01:31:23]} {[%emt 00:01:00]}
Bc5 {[%clk 01:31:05]} {[%emt 00:00:05]} 6. Nb3 {[%clk 01:31:46]} {[%emt
00:00:08]} Be7 {[%clk 01:31:31]} {[%emt 00:00:04]} 7. Qg4 {[%clk 01:31:44]}
{[%emt 00:00:32]} g6 {[%clk 01:31:55]} {[%emt 00:00:06]} 8. Qe2 {[%clk
01:32:08]} {[%emt 00:00:05]} d6 {[%clk 01:32:22]} {[%emt 00:00:03]} 9. a4
{[%clk 01:31:40]} {[%emt 00:00:58]} b6 {[%clk 01:28:44]} {[%emt 00:04:08]} 10.
Nc3 {[%clk 01:30:40]} {[%emt 00:01:29]} Bb7 {[%clk 01:28:38]} {[%emt 00:00:38]}
11. O-O {[%clk 01:28:31]} {[%emt 00:02:39]} Nd7 {[%clk 01:26:45]} {[%emt
00:02:23]} 12. Bd2 {[%clk 01:16:14]} {[%emt 00:12:46]} h5 {[%clk 01:22:52]}
{[%emt 00:04:23]} 13. Rae1 {[%clk 01:14:05]} {[%emt 00:02:38]} Ngf6 {[%clk
01:22:45]} {[%emt 00:00:38]} 14. f4 {[%clk 01:10:10]} {[%emt 00:04:24]} Qc7
{[%clk 01:22:10]} {[%emt 00:01:05]} 15. h3 {[%clk 01:03:48]} {[%emt 00:06:53]}
h4 {[%clk 01:22:28]} {[%emt 00:00:13]} 16. Rf2 {[%clk 00:48:51]} {[%emt
00:15:26]} Nh5 {[%clk 01:18:06]} {[%emt 00:04:52]} 17. Qe3 {[%clk 00:37:33]}
{[%emt 00:11:48]} Ng3 {[%clk 01:06:53]} {[%emt 00:11:44]} 18. Ne2 {[%clk
00:27:57]} {[%emt 00:10:05]} d5 {[%clk 01:01:28]} {[%emt 00:05:54]} 19. Bc3
{[%clk 00:20:58]} {[%emt 00:07:29]} dxe4 {[%clk 00:50:21]} {[%emt 00:11:38]} 20.
Bxh8 {[%clk 00:18:38]} {[%emt 00:02:50]} Nf5 {[%clk 00:49:53]} {[%emt
00:00:57]} 21. Qc1 {[%clk 00:18:27]} {[%emt 00:00:41]} exd3 {[%clk 00:49:02]}
{[%emt 00:01:21]} 22. cxd3 {[%clk 00:18:03]} {[%emt 00:00:55]} Qxc1 {[%clk
00:46:09]} {[%emt 00:03:23]} 23. Nexc1 {[%clk 00:10:09]} {[%emt 00:08:24]} f6
{[%clk 00:38:26]} {[%emt 00:08:13]} 24. Rc2 {[%clk 00:09:49]} {[%emt 00:00:50]}
Bd6 {[%clk 00:33:05]} {[%emt 00:05:51]} 25. Rxe6+ {[%clk 00:02:07]} {[%emt
00:08:12]} Kf7 {[%clk 00:33:33]} {[%emt 00:00:01]} 26. Rxd6 {[%clk 00:02:17]}
{[%emt 00:00:20]} Nxd6 {[%clk 00:34:01]} {[%emt 00:00:02]} 27. Rc7 {[%clk
00:02:43]} {[%emt 00:00:05]} Bc8 {[%clk 00:27:48]} {[%emt 00:06:43]} 28. a5
{[%clk 00:02:28]} {[%emt 00:00:45]} Nb5 {[%clk 00:21:23]} {[%emt 00:06:55]} 29.
Rc4 {[%clk 00:01:49]} {[%emt 00:01:09]} Bb7 {[%clk 00:13:58]} {[%emt 00:07:55]}
30. Nd4 {[%clk 00:02:10]} {[%emt 00:00:09]} Bd5 {[%clk 00:08:17]} {[%emt
00:06:10]} 31. Nxb5 {[%clk 00:01:34]} {[%emt 00:01:06]} axb5 {[%clk 00:07:54]}
{[%emt 00:00:54]} 32. Rc7 {[%clk 00:01:09]} {[%emt 00:00:55]} Be6 {[%clk
00:07:12]} {[%emt 00:01:11]} 33. axb6 {[%clk 00:00:39]} {[%emt 00:01:01]} Rxh8
{[%clk 00:07:40]} {[%emt 00:00:02]} 34. Nb3 {[%clk 00:00:37]} {[%emt 00:00:33]}
Bxb3 {[%clk 00:04:09]} {[%emt 00:04:00]} 35. Rxd7+ {[%clk 00:01:06]} {[%emt
00:00:01]} Ke6 {[%clk 00:04:31]} {[%emt 00:00:07]} 36. Rc7 {[%clk 00:00:53]}
{[%emt 00:00:43]} Bd5 {[%clk 00:03:48]} {[%emt 00:01:13]} 37. Rc5 {[%clk
00:01:08]} {[%emt 00:00:16]} b4 {[%clk 00:02:24]} {[%emt 00:01:54]} 38. b3
{[%clk 00:01:25]} {[%emt 00:00:14]} Rb8 {[%clk 00:01:46]} {[%emt 00:01:08]} 39.
Rb5 {[%clk 00:01:50]} {[%emt 00:00:05]} Kd6 {[%clk 00:01:50]} {[%emt 00:00:25]}
40. Rxb4 {[%clk 00:01:56]} {[%emt 00:00:24]} Kc5 {[%clk 00:02:07]} {[%emt
00:00:12]} 41. Ra4 {[%clk 00:00:43]} {[%emt 00:01:44]} Rxb6 {[%clk 00:01:28]}
{[%emt 00:01:09]} 42. Ra7 {[%clk 00:23:53]} {[%emt 00:07:21]} Rxb3 {[%clk
00:18:45]} {[%emt 00:13:13]} 43. Rg7 {[%clk 00:24:07]} {[%emt 00:00:15]} Rxd3
{[%clk 00:18:38]} {[%emt 00:00:37]} 44. Rxg6 {[%clk 00:24:30]} {[%emt
00:00:07]} f5 {[%clk 00:18:49]} {[%emt 00:00:19]} 45. Rh6 {[%clk 00:23:15]}
{[%emt 00:01:45]} Kd4 {[%clk 00:17:06]} {[%emt 00:02:12]} 46. Rxh4 {[%clk
00:23:20]} {[%emt 00:00:26]} Rd1+ {[%clk 00:17:13]} {[%emt 00:00:23]} 47. Kf2
{[%clk 00:22:56]} {[%emt 00:00:54]} Rd2+ {[%clk 00:17:38]} {[%emt 00:00:05]} 48.
Ke1 {[%clk 00:21:38]} {[%emt 00:01:48]} Rxg2 {[%clk 00:17:54]} {[%emt
00:00:14]} 49. Rh5 {[%clk 00:21:50]} {[%emt 00:00:18]} Ke3 {[%clk 00:18:07]}
{[%emt 00:00:17]} 50. Kd1 {[%clk 00:21:48]} {[%emt 00:00:32]} Bf3+ {[%clk
00:18:22]} {[%emt 00:00:16]} 0-1

[Event "Elitserien 2019/2020, round 1-3"]
[Site "Uppsala University, Gamla torget, Uppsala, Sweden"]
[Date "2019.10.18"]
[Round "1.30"]
[White "Mauritsson, Sebastian"]
[Black "Norberg, Erik"]
[Result "1-0"]
[TimeControl "90 minutes for 40 moves + 30 minutes for the rest of the game + 30 seconds per move from move one."]
[WhiteTitle "FM"]
[BlackTitle "CM"]
[WhiteFideId "1707892"]
[BlackFideId "1707965"]
[WhiteElo "2339"]
[BlackElo "2257"]

1. e4 {[%clk 01:30:55]} {[%emt 00:00:03]} g6 {[%clk 01:27:07]} {[%emt
00:03:53]} 2. d4 {[%clk 01:31:17]} {[%emt 00:00:08]} Bg7 {[%clk 01:27:31]}
{[%emt 00:00:06]} 3. Nc3 {[%clk 01:31:42]} {[%emt 00:00:06]} d5 {[%clk
01:23:45]} {[%emt 00:04:16]} 4. exd5 {[%clk 01:31:48]} {[%emt 00:00:24]} Nf6
{[%clk 01:24:04]} {[%emt 00:00:10]} 5. Bc4 {[%clk 01:30:14]} {[%emt 00:02:04]}
Nbd7 {[%clk 01:17:25]} {[%emt 00:07:09]} 6. Bg5 {[%clk 01:30:04]} {[%emt
00:00:40]} Nb6 {[%clk 01:15:07]} {[%emt 00:02:47]} 7. Bxf6 {[%clk 01:29:48]}
{[%emt 00:00:46]} Bxf6 {[%clk 01:15:31]} {[%emt 00:00:06]} 8. Bb3 {[%clk
01:30:06]} {[%emt 00:00:13]} c6 {[%clk 01:11:51]} {[%emt 00:04:10]} 9. dxc6
{[%clk 01:21:26]} {[%emt 00:09:11]} Qxd4 {[%clk 01:01:41]} {[%emt 00:10:39]} 10.
Qxd4 {[%clk 01:07:57]} {[%emt 00:13:59]} Bxd4 {[%clk 00:56:21]} {[%emt
00:05:50]} 11. Nge2 {[%clk 00:47:26]} {[%emt 00:21:01]} Bxc3+ {[%clk 00:54:57]}
{[%emt 00:01:54]} 12. Nxc3 {[%clk 00:47:49]} {[%emt 00:00:07]} bxc6 {[%clk
00:55:19]} {[%emt 00:00:07]} 13. O-O-O {[%clk 00:42:27]} {[%emt 00:05:52]} O-O
{[%clk 00:49:05]} {[%emt 00:06:45]} 14. Rhe1 {[%clk 00:41:47]} {[%emt
00:01:10]} Re8 {[%clk 00:39:52]} {[%emt 00:09:42]} 15. Ne4 {[%clk 00:41:21]}
{[%emt 00:00:55]} Ba6 {[%clk 00:35:46]} {[%emt 00:04:37]} 16. Rd4 {[%clk
00:36:40]} {[%emt 00:05:11]} Kg7 {[%clk 00:28:10]} {[%emt 00:08:06]} 17. Nc5
{[%clk 00:32:45]} {[%emt 00:04:26]} Bc8 {[%clk 00:28:01]} {[%emt 00:00:38]} 18.
f3 {[%clk 00:27:46]} {[%emt 00:05:29]} a5 {[%clk 00:26:31]} {[%emt 00:02:00]}
19. a4 {[%clk 00:27:00]} {[%emt 00:01:17]} Ra7 {[%clk 00:24:49]} {[%emt
00:02:12]} 20. Red1 {[%clk 00:27:25]} {[%emt 00:00:04]} h5 {[%clk 00:23:54]}
{[%emt 00:01:26]} 21. h3 {[%clk 00:25:32]} {[%emt 00:02:23]} Rc7 {[%clk
00:20:53]} {[%emt 00:03:31]} 22. R1d2 {[%clk 00:25:14]} {[%emt 00:00:49]} Nd5
{[%clk 00:19:20]} {[%emt 00:02:03]} 23. Re4 {[%clk 00:14:43]} {[%emt 00:11:01]}
Bf5 {[%clk 00:14:54]} {[%emt 00:04:55]} 24. Rc4 {[%clk 00:13:10]} {[%emt
00:02:04]} Nb6 {[%clk 00:07:57]} {[%emt 00:07:27]} 25. Rcd4 {[%clk 00:13:31]}
{[%emt 00:00:09]} e5 {[%clk 00:07:33]} {[%emt 00:00:55]} 26. Rd8 {[%clk
00:12:44]} {[%emt 00:01:16]} Kf8 {[%clk 00:06:07]} {[%emt 00:01:56]} 27. g4
{[%clk 00:11:49]} {[%emt 00:01:25]} hxg4 {[%clk 00:05:26]} {[%emt 00:01:11]} 28.
hxg4 {[%clk 00:12:16]} {[%emt 00:00:04]} Bc8 {[%clk 00:05:47]} {[%emt
00:00:08]} 29. c3 {[%clk 00:11:11]} {[%emt 00:01:34]} Rxd8 {[%clk 00:05:22]}
{[%emt 00:00:56]} 30. Rxd8+ {[%clk 00:11:40]} {[%emt 00:00:01]} Ke7 {[%clk
00:05:32]} {[%emt 00:00:20]} 31. Rh8 {[%clk 00:10:31]} {[%emt 00:01:38]} e4
{[%clk 00:03:02]} {[%emt 00:03:01]} 32. Nxe4 {[%clk 00:09:41]} {[%emt
00:01:20]} c5 {[%clk 00:03:24]} {[%emt 00:00:08]} 33. Bxf7 {[%clk 00:08:49]}
{[%emt 00:01:22]} Rc6 {[%clk 00:02:08]} {[%emt 00:01:46]} 34. Rh7 {[%clk
00:07:55]} {[%emt 00:01:23]} Kf8 {[%clk 00:02:13]} {[%emt 00:00:25]} 35. Bb3
{[%clk 00:07:45]} {[%emt 00:00:40]} c4 {[%clk 00:02:05]} {[%emt 00:00:38]} 36.
Bc2 {[%clk 00:08:12]} {[%emt 00:00:03]} Bd7 {[%clk 00:01:29]} {[%emt 00:01:07]}
37. Rh8+ {[%clk 00:04:50]} {[%emt 00:03:51]} Kg7 {[%clk 00:01:41]} {[%emt
00:00:18]} 38. Rb8 {[%clk 00:05:03]} {[%emt 00:00:17]} Bc8 {[%clk 00:00:58]}
{[%emt 00:01:12]} 39. Kd2 {[%clk 00:02:21]} {[%emt 00:03:12]} Kf7 {[%clk
00:00:47]} {[%emt 00:00:41]} 40. b4 {[%clk 00:02:04]} {[%emt 00:00:47]} cxb3
{[%clk 00:00:35]} {[%emt 00:00:42]} 41. Bxb3+ {[%clk 00:02:32]} {[%emt
00:00:03]} Ke7 {[%clk 00:00:48]} {[%emt 00:00:16]} 42. c4 {[%clk 00:20:08]}
{[%emt 00:12:54]} Nxc4+ {[%clk 00:26:17]} {[%emt 00:05:01]} 43. Bxc4 {[%clk
00:20:32]} {[%emt 00:00:06]} Rxc4 {[%clk 00:26:41]} {[%emt 00:00:06]} 44. Nc3
{[%clk 00:19:32]} {[%emt 00:01:30]} Bd7 {[%clk 00:26:22]} {[%emt 00:00:48]} 45.
Nd5+ {[%clk 00:15:21]} {[%emt 00:04:42]} Kd6 {[%clk 00:23:19]} {[%emt
00:03:33]} 46. Nb6 {[%clk 00:15:24]} {[%emt 00:00:27]} Kc7 {[%clk 00:21:44]}
{[%emt 00:02:06]} 47. Nxc4 {[%clk 00:14:55]} {[%emt 00:00:59]} Kxb8 {[%clk
00:22:07]} {[%emt 00:00:06]} 48. Nxa5 {[%clk 00:15:15]} {[%emt 00:00:10]} Bxa4
{[%clk 00:22:30]} {[%emt 00:00:06]} 49. Nc4 {[%clk 00:08:27]} {[%emt 00:07:17]}
Kc7 {[%clk 00:22:22]} {[%emt 00:00:39]} 50. Ne5 {[%clk 00:08:42]} {[%emt
00:00:15]} Be8 {[%clk 00:22:40]} {[%emt 00:00:12]} 51. Ke3 {[%clk 00:08:54]}
{[%emt 00:00:18]} Kd6 {[%clk 00:22:51]} {[%emt 00:00:19]} 52. Kf4 {[%clk
00:04:01]} {[%emt 00:05:24]} Ke6 {[%clk 00:22:40]} {[%emt 00:00:40]} 53. Nd3
{[%clk 00:04:07]} {[%emt 00:00:24]} Bc6 {[%clk 00:21:57]} {[%emt 00:01:13]} 54.
Nc5+ {[%clk 00:04:16]} {[%emt 00:00:23]} Kd6 {[%clk 00:22:07]} {[%emt
00:00:20]} 55. Ne4+ {[%clk 00:04:40]} {[%emt 00:00:05]} Ke6 {[%clk 00:22:22]}
{[%emt 00:00:15]} 56. Kg5 {[%clk 00:04:54]} {[%emt 00:00:17]} Ke5 {[%clk
00:21:20]} {[%emt 00:01:32]} 57. Nd2 {[%clk 00:04:51]} {[%emt 00:00:33]} Kd4
{[%clk 00:21:02]} {[%emt 00:00:48]} 58. f4 {[%clk 00:02:24]} {[%emt 00:02:58]}
Bd7 {[%clk 00:20:46]} {[%emt 00:00:45]} 59. Nf3+ {[%clk 00:02:40]} {[%emt
00:00:14]} 1-0

[Event "Elitserien 2019/2020, round 1-3"]
[Site "Uppsala University, Gamla torget, Uppsala, Sweden"]
[Date "2019.10.18"]
[Round "1.31"]
[White "Jonsson, Mikael"]
[Black "Jogstad, Martin"]
[Result "1/2-1/2"]
[TimeControl "90 minutes for 40 moves + 30 minutes for the rest of the game + 30 seconds per move from move one."]
[BlackTitle "FM"]
[WhiteFideId "1702041"]
[BlackFideId "1715364"]
[WhiteElo "2252"]
[BlackElo "2322"]

1. d4 {[%clk 01:30:39]} {[%emt 00:00:19]} d5 {[%clk 01:30:37]} {[%emt
00:00:11]} 2. c4 {[%clk 01:30:52]} {[%emt 00:00:28]} c6 {[%clk 01:31:02]}
{[%emt 00:00:05]} 3. Nf3 {[%clk 01:31:00]} {[%emt 00:00:23]} Nf6 {[%clk
01:31:27]} {[%emt 00:00:05]} 4. e3 {[%clk 01:27:20]} {[%emt 00:04:09]} Bf5
{[%clk 01:31:38]} {[%emt 00:00:19]} 5. cxd5 {[%clk 01:27:10]} {[%emt 00:00:40]}
cxd5 {[%clk 01:32:01]} {[%emt 00:00:07]} 6. Nc3 {[%clk 01:27:32]} {[%emt
00:00:08]} Nc6 {[%clk 01:27:01]} {[%emt 00:05:31]} 7. Ne5 {[%clk 01:20:47]}
{[%emt 00:07:15]} a6 {[%clk 01:13:23]} {[%emt 00:14:08]} 8. a3 {[%clk
01:09:06]} {[%emt 00:12:10]} Rc8 {[%clk 01:03:23]} {[%emt 00:10:31]} 9. Be2
{[%clk 00:59:47]} {[%emt 00:09:48]} h6 {[%clk 00:58:34]} {[%emt 00:05:19]} 10.
O-O {[%clk 00:57:00]} {[%emt 00:03:17]} e6 {[%clk 00:57:41]} {[%emt 00:01:24]}
11. Qb3 {[%clk 00:49:31]} {[%emt 00:07:58]} Nxe5 {[%clk 00:49:21]} {[%emt
00:08:50]} 12. dxe5 {[%clk 00:49:47]} {[%emt 00:00:14]} Nd7 {[%clk 00:49:42]}
{[%emt 00:00:09]} 13. Qa4 {[%clk 00:38:35]} {[%emt 00:11:42]} Bc5 {[%clk
00:41:26]} {[%emt 00:08:46]} 14. e4 {[%clk 00:15:43]} {[%emt 00:23:22]} dxe4
{[%clk 00:39:28]} {[%emt 00:02:28]} 15. Rd1 {[%clk 00:13:14]} {[%emt 00:03:00]}
Rc6 {[%clk 00:38:57]} {[%emt 00:01:01]} 16. Be3 {[%clk 00:09:51]} {[%emt
00:03:53]} Bxe3 {[%clk 00:22:28]} {[%emt 00:16:59]} 17. fxe3 {[%clk 00:08:48]}
{[%emt 00:01:32]} Qc7 {[%clk 00:12:51]} {[%emt 00:10:06]} 18. Rd6 {[%clk
00:01:11]} {[%emt 00:08:08]} Nxe5 {[%clk 00:11:47]} {[%emt 00:01:34]} 19. Rad1
{[%clk 00:00:33]} {[%emt 00:01:08]} O-O {[%clk 00:09:20]} {[%emt 00:02:57]} 20.
Rxc6 {[%clk 00:00:32]} {[%emt 00:00:31]} Nxc6 {[%clk 00:05:06]} {[%emt
00:04:43]} 21. Nxe4 {[%clk 00:00:47]} {[%emt 00:00:15]} Qb6 {[%clk 00:03:42]}
{[%emt 00:01:54]} 22. Nd6 {[%clk 00:00:38]} {[%emt 00:00:39]} Qxe3+ {[%clk
00:03:57]} {[%emt 00:00:14]} 23. Kf1 {[%clk 00:01:02]} {[%emt 00:00:06]} b5
{[%clk 00:02:28]} {[%emt 00:01:59]} 24. Qxa6 {[%clk 00:01:11]} {[%emt
00:00:22]} Nd4 {[%clk 00:02:09]} {[%emt 00:00:49]} 25. Bxb5 {[%clk 00:01:01]}
{[%emt 00:00:39]} Qf4+ {[%clk 00:01:25]} {[%emt 00:01:14]} 26. Kg1 {[%clk
00:01:24]} {[%emt 00:00:07]} Rd8 {[%clk 00:01:29]} {[%emt 00:00:26]} 27. Bd7
{[%clk 00:01:06]} {[%emt 00:00:48]} Kh7 {[%clk 00:00:55]} {[%emt 00:01:04]} 28.
Nxf5 {[%clk 00:01:05]} {[%emt 00:00:31]} exf5 {[%clk 00:01:07]} {[%emt
00:00:18]} 29. Qa7 {[%clk 00:01:19]} {[%emt 00:00:16]} Ne6 {[%clk 00:00:40]}
{[%emt 00:00:57]} 30. Qf2 {[%clk 00:00:40]} {[%emt 00:01:09]} Qg4 {[%clk
00:00:36]} {[%emt 00:00:35]} 31. Rd2 {[%clk 00:00:43]} {[%emt 00:00:26]} Qg5
{[%clk 00:00:44]} {[%emt 00:00:22]} 32. h4 {[%clk 00:00:42]} {[%emt 00:00:31]}
Qe7 {[%clk 00:00:46]} {[%emt 00:00:28]} 33. Bxe6 {[%clk 00:00:35]} {[%emt
00:00:37]} fxe6 {[%clk 00:01:04]} {[%emt 00:00:12]} 34. Rxd8 {[%clk 00:00:42]}
{[%emt 00:00:23]} Qxd8 {[%clk 00:01:33]} {[%emt 00:00:01]} 35. Qe3 {[%clk
00:00:39]} {[%emt 00:00:34]} Qxh4 {[%clk 00:01:41]} {[%emt 00:00:22]} 36. Qxe6
{[%clk 00:01:02]} {[%emt 00:00:07]} Qd4+ {[%clk 00:01:46]} {[%emt 00:00:24]} 37.
Kh1 {[%clk 00:01:23]} {[%emt 00:00:09]} Qh4+ {[%clk 00:02:04]} {[%emt
00:00:13]} 38. Kg1 {[%clk 00:01:48]} {[%emt 00:00:05]} Qd4+ {[%clk 00:02:29]}
{[%emt 00:00:05]} 39. Kh1 {[%clk 00:02:14]} {[%emt 00:00:04]} Qh4+ {[%clk
00:00:43]} {[%emt 00:02:16]} 40. Kg1 {[%clk 00:02:37]} {[%emt 00:00:07]} Qd4+
{[%clk 00:00:55]} {[%emt 00:00:18]} 41. Kh1 {[%clk 00:03:01]} {[%emt 00:00:06]}
Qd1+ {[%clk 00:26:36]} {[%emt 00:04:49]} 42. Kh2 {[%clk 00:33:22]} {[%emt
00:00:09]} Qh5+ {[%clk 00:26:59]} {[%emt 00:00:07]} 43. Kg1 {[%clk 00:33:38]}
{[%emt 00:00:13]} Qd1+ {[%clk 00:27:10]} {[%emt 00:00:19]} 44. Kh2 {[%clk
00:33:21]} {[%emt 00:00:47]} Qh5+ {[%clk 00:27:33]} {[%emt 00:00:08]} 45. Kg1
{[%clk 00:33:44]} {[%emt 00:00:06]} 1/2-1/2